fUST/lending_fUST_20241125
["ID","MTS","AMOUNT","RATE_DAILY","PERIOD"]
[343243674,1732528235006,-500.0,0.00021829,2]
[343243675,1732528235015,-500.0,0.00021829,2]
[343243676,1732528235024,-500.0,0.00021829,2]
[343243677,1732528235033,-500.0,0.00021829,2]
[343243678,1732528235042,-500.0,0.00021829,2]
[343243679,1732528235050,-500.0,0.00021829,2]
[343243680,1732528235057,-500.0,0.00021829,2]
[343243681,1732528235066,-500.0,0.00021829,2]
[343243682,1732528235073,-500.0,0.00021829,2]
[343243683,1732528235080,-500.0,0.00021829,2]
[343243684,1732528235087,-500.0,0.00021829,2]
[343243685,1732528235095,-500.0,0.00021829,2]
[343243686,1732528235103,-500.0,0.00021829,2]
[343243687,1732528235110,-1404.33842731,0.0002186,2]
[343243688,1732528235119,-160.0404202,0.00021873,2]
[343243689,1732528235126,-360.10880151,0.00021873,2]
[343243690,1732528235134,-500.0,0.00021873,2]
[343243691,1732528235141,-333.54449904,0.00021873,2]
[343243692,1732528235150,-155.03915708,0.00021873,2]
[343243693,1732528235160,-200.05052808,0.00021873,2]
[343243694,1732528235170,-5822.89967481,0.00021879,2]
[343243695,1732528235179,-500.0,0.0002188,2]
[343243696,1732528235189,-2264.53,0.0002188,2]
[343243697,1732528235199,-1681.43,0.0002188,2]
[343243698,1732528235209,-528.45,0.0002188,2]
[343243699,1732528235219,-500.0,0.0002188,2]
[343243700,1732528235228,-500.0,0.00021884,2]
[343243701,1732528235239,-500.0,0.00021884,2]
[343243702,1732528235248,-500.0,0.00021884,2]
[343243703,1732528235258,-200.0,0.00021884,2]
[343243704,1732528235268,-500.0,0.00021884,2]
[343243705,1732528235278,-500.0,0.00021884,2]
[343243706,1732528235287,-500.0,0.00021884,2]
[343243707,1732528235297,-500.0,0.00021884,2]
[343243708,1732528235307,-500.0,0.00021884,2]
[343243709,1732528235319,-420.0,0.0002189,2]
[343243710,1732528235328,-1000.0,0.00021917,10]
[343243711,1732528235338,-1000.0,0.00021917,10]
[343243712,1732528235348,-1000.0,0.00021917,10]
[343243713,1732528235358,-1000.0,0.00021917,10]
[343243714,1732528235367,-1000.0,0.00021917,10]
[343243715,1732528235376,-251.904315,0.00021972,2]
[343243716,1732528235386,-161.0,0.00022,2]
[343243717,1732528235395,-160.0,0.00022,2]
[343243718,1732528235405,-500.0,0.00022101,2]
[343243719,1732528235414,-500.0,0.00022101,2]
[343243720,1732528235424,-8800.3,0.00022101,2]
[343243721,1732528235434,-500.0,0.00022101,2]
[343243722,1732528235443,-500.0,0.00022101,2]
[343243723,1732528235453,-500.0,0.00022101,2]
[343243724,1732528235463,-500.0,0.00022101,2]
[343243725,1732528235472,-500.0,0.00022101,2]
[343243726,1732528235482,-592.18424883,0.00022101,2]
[343243727,1732528235491,-500.0,0.00022101,2]
[343243728,1732528235500,-500.0,0.00022101,2]
[343243729,1732528235510,-500.0,0.00022101,2]
[343243730,1732528235520,-500.0,0.00022101,2]
[343243731,1732528235530,-500.0,0.00022101,2]
[343243732,1732528235539,-500.0,0.00022101,2]
[343243733,1732528235548,-500.0,0.00022101,2]
[343243734,1732528235558,-500.0,0.00022103,2]
[343243735,1732528235568,-500.0,0.00022103,2]
[343243736,1732528235578,-500.0,0.00022103,2]
[343243737,1732528235587,-500.0,0.00022103,2]
[343243738,1732528235596,-500.0,0.00022103,2]
[343243739,1732528235605,-534.87,0.00022103,2]
[343243740,1732528235614,-500.0,0.00022103,2]
[343243741,1732528235623,-500.0,0.00022103,2]
[343243742,1732528235633,-500.0,0.00022103,2]
[343243743,1732528235642,-500.0,0.00022103,2]
[343243744,1732528235652,-500.0,0.00022103,2]
[343243745,1732528235661,-500.0,0.00022103,2]
[343243746,1732528235671,-500.0,0.00022103,2]
[343243747,1732528235681,-500.0,0.00022103,2]
[343243748,1732528235691,-500.0,0.00022103,2]
[343243749,1732528235701,-500.0,0.00022103,2]
[343243750,1732528235712,-500.0,0.00022103,2]
[343243751,1732528235723,-500.0,0.00022103,2]
[343243752,1732528235732,-500.0,0.00022103,2]
[343243753,1732528235742,-500.0,0.00022103,2]
[343243754,1732528235751,-500.0,0.00022103,2]
[343243755,1732528235762,-500.0,0.00022103,2]
[343243756,1732528235771,-500.0,0.00022103,2]
[343243757,1732528235780,-500.0,0.00022103,2]
[343243758,1732528235790,-500.0,0.00022103,2]
[343243759,1732528235801,-500.0,0.00022103,2]
[343243760,1732528235812,-500.0,0.00022103,2]
[343243761,1732528235822,-500.0,0.00022103,2]
[343243762,1732528235832,-500.0,0.00022103,2]
[343243763,1732528235842,-500.0,0.00022103,2]
[343243764,1732528235851,-500.0,0.00022103,2]
[343243765,1732528235861,-500.0,0.00022103,2]
[343243766,1732528235870,-500.0,0.00022103,2]
[343243767,1732528235880,-500.0,0.00022103,2]
[343243768,1732528235890,-500.0,0.00022103,2]
[343243769,1732528235899,-500.0,0.00022103,2]
[343243770,1732528235909,-500.0,0.00022103,2]
[343243771,1732528235918,-500.0,0.00022103,2]
[343243772,1732528235927,-500.0,0.00022154,2]
[343243773,1732528235937,-2264.53,0.00022154,2]
[343243774,1732528235946,-1681.43,0.00022154,2]
[343243775,1732528235956,-528.45,0.00022154,2]
[343243776,1732528235967,-500.0,0.00022154,2]
[343243777,1732528235976,-430.35813068,0.00022158,2]
[343243778,1732528235986,-500.0,0.00022158,2]
[343243779,1732528235996,-500.0,0.00022158,2]
[343243780,1732528236006,-1000.0,0.00022158,10]
[343243781,1732528236016,-200.0,0.00022158,2]
[343243782,1732528236025,-500.0,0.00022158,2]
[343243783,1732528236035,-500.0,0.00022158,2]
[343243784,1732528236044,-500.0,0.00022158,2]
[343243785,1732528236053,-500.0,0.00022158,2]
[343243786,1732528236065,-500.0,0.00022158,2]
[343243787,1732528236075,-251.904315,0.0002217,2]
[343243788,1732528236085,-1266.146378,0.00022248,2]
[343243789,1732528236095,-192.5071068,0.00022248,2]
[343243790,1732528236104,-24900.0,0.00022248,2]
[343243791,1732528236114,-500.0,0.00022267,2]
[343243792,1732528236123,-313.03818842,0.00022291,2]
[343243793,1732528236134,-158.54004124,0.00022291,2]
[343243794,1732528236143,-500.39463857,0.00022291,2]
[343243795,1732528236153,-500.80713521,0.00022291,2]
[343243796,1732528236162,-256.23376913,0.00022291,2]
[343243797,1732528236173,-170.03131513,0.00022291,2]
[343243798,1732528236183,-160.04042215,0.00022291,2]
[343243799,1732528236192,-500.0,0.00022291,2]
[343243800,1732528236202,-157.90815131,0.00022291,2]
[343243801,1732528236212,-5822.89967481,0.00022304,2]
[343243802,1732528236221,-158.55774082,0.00022322,2]
[343243803,1732528236231,-527.29696343,0.00022322,2]
[343243804,1732528236241,-160.04042246,0.00022322,2]
[343243805,1732528236250,-251.904315,0.00022368,2]
[343243806,1732528236260,-500.0,0.00022375,2]
[343243807,1732528236270,-500.0,0.00022375,2]
[343243808,1732528236279,-8800.3,0.00022375,2]
[343243809,1732528236288,-500.0,0.00022375,2]
[343243810,1732528236297,-500.0,0.00022375,2]
[343243811,1732528236307,-500.0,0.00022375,2]
[343243812,1732528236319,-500.0,0.00022375,2]
[343243813,1732528236329,-588.68510608,0.00022375,2]
[343243814,1732528236338,-500.0,0.00022375,2]
[343243815,1732528236348,-500.0,0.00022375,2]
[343243816,1732528236357,-500.0,0.00022375,2]
[343243817,1732528236367,-500.0,0.00022375,2]
[343243818,1732528236376,-500.0,0.00022375,2]
[343243819,1732528236386,-500.0,0.00022375,2]
[343243820,1732528236395,-500.0,0.00022375,2]
[343243821,1732528236405,-500.0,0.00022377,2]
[343243822,1732528236414,-500.0,0.00022377,2]
[343243823,1732528236423,-500.0,0.00022377,2]
[343243824,1732528236433,-500.0,0.00022377,2]
[343243825,1732528236443,-500.0,0.00022377,2]
[343243826,1732528236452,-534.87,0.00022377,2]
[343243827,1732528236461,-500.0,0.00022377,2]
[343243828,1732528236471,-500.0,0.00022377,2]
[343243829,1732528236480,-500.0,0.00022377,2]
[343243830,1732528236554,-500.0,0.00022377,2]
[343243831,1732528236565,-500.0,0.00022377,2]
[343243832,1732528236575,-500.0,0.00022377,2]
[343243833,1732528236586,-500.0,0.00022377,2]
[343243834,1732528236596,-500.0,0.00022377,2]
[343243835,1732528236606,-500.0,0.00022377,2]
[343243836,1732528236617,-500.0,0.00022377,2]
[343243837,1732528236626,-500.0,0.00022377,2]
[343243838,1732528236635,-500.0,0.00022377,2]
[343243839,1732528236645,-500.0,0.00022377,2]
[343243840,1732528236654,-500.0,0.00022377,2]
[343243841,1732528236663,-500.0,0.00022377,2]
[343243842,1732528236673,-500.0,0.00022377,2]
[343243843,1732528236683,-500.0,0.00022377,2]
[343243844,1732528236692,-500.0,0.00022377,2]
[343243845,1732528236702,-500.0,0.00022377,2]
[343243846,1732528236711,-500.0,0.00022377,2]
[343243847,1732528236723,-500.0,0.00022377,2]
[343243848,1732528236732,-500.0,0.00022377,2]
[343243849,1732528236742,-500.0,0.00022377,2]
[343243850,1732528236751,-500.0,0.00022377,2]
[343243851,1732528236761,-500.0,0.00022377,2]
[343243852,1732528236771,-500.0,0.00022377,2]
[343243853,1732528236781,-500.0,0.00022377,2]
[343243854,1732528236790,-500.0,0.00022377,2]
[343243855,1732528236800,-500.0,0.00022377,2]
[343243856,1732528236812,-500.0,0.00022377,2]
[343243857,1732528236822,-500.0,0.00022377,2]
[343243858,1732528236832,-500.0,0.00022377,2]
[343243859,1732528236842,-500.0,0.00022421,2]
[343243860,1732528236851,-500.0,0.00022428,2]
[343243861,1732528236861,-2264.53,0.00022428,2]
[343243862,1732528236870,-1681.43,0.00022428,2]
[343243863,1732528236880,-528.45,0.00022428,2]
[343243864,1732528236889,-500.0,0.00022428,2]
[343243865,1732528236899,-500.0,0.00022432,2]
[343243866,1732528236909,-500.0,0.00022432,2]
[343243867,1732528236919,-1000.0,0.00022432,10]
[343243868,1732528236929,-200.0,0.00022432,2]
[343243869,1732528236938,-500.0,0.00022432,2]
[343243870,1732528236948,-500.0,0.00022432,2]
[343243871,1732528236957,-500.0,0.00022432,2]
[343243872,1732528236967,-500.0,0.00022432,2]
[343243873,1732528236977,-500.0,0.00022432,2]
[343243874,1732528236987,-251.904315,0.00022566,2]
[343243875,1732528236996,-500.0,0.00022649,2]
[343243876,1732528237006,-500.0,0.00022649,2]
[343243877,1732528237016,-8800.3,0.00022649,2]
[343243878,1732528237027,-500.0,0.00022649,2]
[343243879,1732528237036,-500.0,0.00022649,2]
[343243880,1732528237046,-500.0,0.00022649,2]
[343243881,1732528237056,-500.0,0.00022649,2]
[343243882,1732528237072,-500.0,0.00022649,2]
[343243883,1732528237082,-500.0,0.00022649,2]
[343243884,1732528237092,-500.0,0.00022649,2]
[343243885,1732528237102,-500.0,0.00022649,2]
[343243886,1732528237113,-500.0,0.00022649,2]
[343243887,1732528237122,-500.0,0.00022649,2]
[343243888,1732528237132,-500.0,0.00022649,2]
[343243889,1732528237142,-500.0,0.00022651,2]
[343243890,1732528237151,-500.0,0.00022651,2]
[343243891,1732528237162,-500.0,0.00022651,2]
[343243892,1732528237171,-500.0,0.00022651,2]
[343243893,1732528237181,-500.0,0.00022651,2]
[343243894,1732528237191,-534.87,0.00022651,2]
[343243895,1732528237201,-500.0,0.00022651,2]
[343243896,1732528237212,-500.0,0.00022651,2]
[343243897,1732528237222,-500.0,0.00022651,2]
[343243898,1732528237232,-500.0,0.00022651,2]
[343243899,1732528237243,-500.0,0.00022651,2]
[343243900,1732528237252,-500.0,0.00022651,2]
[343243901,1732528237262,-500.0,0.00022651,2]
[343243902,1732528237273,-500.0,0.00022651,2]
[343243903,1732528237282,-500.0,0.00022651,2]
[343243904,1732528237293,-500.0,0.00022651,2]
[343243905,1732528237303,-500.0,0.00022651,2]
[343243906,1732528237318,-500.0,0.00022651,2]
[343243907,1732528237328,-500.0,0.00022651,2]
[343243908,1732528237338,-500.0,0.00022651,2]
[343243909,1732528237348,-500.0,0.00022651,2]
[343243910,1732528237359,-500.0,0.00022651,2]
[343243911,1732528237369,-500.0,0.00022651,2]
[343243912,1732528237379,-500.0,0.00022651,2]
[343243913,1732528237388,-500.0,0.00022651,2]
[343243914,1732528237398,-500.0,0.00022651,2]
[343243915,1732528237408,-500.0,0.00022651,2]
[343243916,1732528237418,-500.0,0.00022651,2]
[343243917,1732528237428,-500.0,0.00022651,2]
[343243918,1732528237438,-500.0,0.00022651,2]
[343243919,1732528237449,-500.0,0.00022651,2]
[343243920,1732528237459,-500.0,0.00022651,2]
[343243921,1732528237469,-500.0,0.00022651,2]
[343243922,1732528237479,-500.0,0.00022651,2]
[343243923,1732528237489,-500.0,0.00022651,2]
[343243924,1732528237500,-500.0,0.00022651,2]
[343243925,1732528237510,-500.0,0.00022651,2]
[343243926,1732528237519,-500.0,0.00022651,2]
[343243927,1732528237529,-169.586233,0.00022684,2]
[343243928,1732528237539,-260.05408077,0.000227,2]
[343243929,1732528237548,-500.0,0.000227,2]
[343243930,1732528237558,-160.04042246,0.000227,2]
[343243931,1732528237575,-160.03997109,0.000227,2]
[343243932,1732528237584,-500.0,0.00022702,2]
[343243933,1732528237594,-2264.53,0.00022702,2]
[343243934,1732528237603,-1681.43,0.00022702,2]
[343243935,1732528237612,-528.45,0.00022702,2]
[343243936,1732528237622,-500.0,0.00022702,2]
[343243937,1732528237632,-500.0,0.00022706,2]
[343243938,1732528237641,-500.0,0.00022706,2]
[343243939,1732528237650,-1000.0,0.00022706,10]
[343243940,1732528237660,-285.10238791,0.00022706,2]
[343243941,1732528237670,-500.0,0.00022706,2]
[343243942,1732528237679,-500.0,0.00022706,2]
[343243943,1732528237689,-500.0,0.00022706,2]
[343243944,1732528237698,-168.8203895,0.00022706,2]
[343243945,1732528237707,-500.0,0.00022706,2]
[343243946,1732528237718,-169.586233,0.00022712,2]
[343243947,1732528237731,-5822.89967481,0.00022729,2]
[343243948,1732528237741,-169.586233,0.00022741,2]
[343243949,1732528237750,-251.904315,0.00022764,2]
[343243950,1732528237760,-169.586233,0.00022769,2]
[343243951,1732528237769,-169.586233,0.00022797,2]
[343243952,1732528237778,-500.0,0.00022923,2]
[343243953,1732528237788,-500.0,0.00022923,2]
[343243954,1732528237799,-8800.3,0.00022923,2]
[343243955,1732528237809,-500.0,0.00022923,2]
[343243956,1732528237822,-500.0,0.00022923,2]
[343243957,1732528237831,-500.0,0.00022923,2]
[343243958,1732528237841,-500.0,0.00022923,2]
[343243959,1732528237850,-500.0,0.00022923,2]
[343243960,1732528237860,-500.0,0.00022923,2]
[343243961,1732528237870,-500.0,0.00022923,2]
[343243962,1732528237879,-500.0,0.00022923,2]
[343243963,1732528237889,-500.0,0.00022923,2]
[343243964,1732528237898,-500.0,0.00022923,2]
[343243965,1732528237908,-500.0,0.00022923,2]
[343243966,1732528237918,-500.0,0.00022925,2]
[343243967,1732528237927,-505.23047027,0.00022925,2]
[343243968,1732528237936,-500.0,0.00022925,2]
[343243969,1732528237946,-500.0,0.00022925,2]
[343243970,1732528237956,-500.0,0.00022925,2]
[343243971,1732528237965,-534.87,0.00022925,2]
[343243972,1732528237974,-500.0,0.00022925,2]
[343243973,1732528237984,-500.0,0.00022925,2]
[343243974,1732528237993,-500.0,0.00022925,2]
[343243975,1732528238002,-500.0,0.00022925,2]
[343243976,1732528238012,-500.0,0.00022925,2]
[343243977,1732528238021,-500.0,0.00022925,2]
[343243978,1732528238103,-500.0,0.00022925,2]
[343243979,1732528238114,-500.0,0.00022925,2]
[343243980,1732528238123,-500.0,0.00022925,2]
[343243981,1732528238132,-500.0,0.00022925,2]
[343243982,1732528238141,-500.0,0.00022925,2]
[343243983,1732528238151,-500.0,0.00022925,2]
[343243984,1732528238161,-500.0,0.00022925,2]
[343243985,1732528238171,-500.0,0.00022925,2]
[343243986,1732528238179,-500.0,0.00022925,2]
[343243987,1732528238189,-500.0,0.00022925,2]
[343243988,1732528238198,-500.0,0.00022925,2]
[343243989,1732528238208,-500.0,0.00022925,2]
[343243990,1732528238217,-500.0,0.00022925,2]
[343243991,1732528238226,-500.0,0.00022925,2]
[343243992,1732528238235,-500.0,0.00022925,2]
[343243993,1732528238244,-500.0,0.00022925,2]
[343243994,1732528238253,-500.0,0.00022925,2]
[343243995,1732528238263,-500.0,0.00022925,2]
[343243996,1732528238272,-500.0,0.00022925,2]
[343243997,1732528238281,-500.0,0.00022925,2]
[343243998,1732528238290,-500.0,0.00022925,2]
[343243999,1732528238300,-500.0,0.00022925,2]
[343244000,1732528238311,-500.0,0.00022925,2]
[343244001,1732528238322,-500.0,0.00022925,2]
[343244002,1732528238331,-500.0,0.00022925,2]
[343244003,1732528238341,-500.0,0.00022925,2]
[343244004,1732528238350,-500.0,0.00022976,2]
[343244005,1732528238359,-2264.53,0.00022976,2]
[343244006,1732528238368,-1681.43,0.00022976,2]
[343244007,1732528238377,-528.45,0.00022976,2]
[343244008,1732528238386,-500.0,0.00022976,2]
[343244009,1732528238396,-500.0,0.0002298,2]
[343244010,1732528238405,-500.0,0.0002298,2]
[343244011,1732528238414,-1000.0,0.0002298,10]
[343244012,1732528238423,-500.0,0.0002298,2]
[343244014,1732528238432,-500.0,0.0002298,2]
[343244016,1732528238442,-500.0,0.0002298,2]
[343244017,1732528238451,-500.0,0.0002298,2]
[343244018,1732528238460,-370.0,0.00023,2]
[343244019,1732528238469,-203.0,0.00023,2]
[343244020,1732528238477,-160.0,0.00023014,2]
[343244021,1732528238486,-1404.33842731,0.00023033,2]
[343244022,1732528238495,-5822.89967481,0.00023154,2]
[343244023,1732528238504,-3214.2,0.00023187,3]
[343244024,1732528238513,-1607.1,0.00023187,3]
[343244025,1732528238522,-803.54,0.00023187,3]
[343244026,1732528238531,-401.78,0.00023187,3]
[343244027,1732528238540,-500.0,0.00023197,2]
[343244028,1732528238550,-500.0,0.00023197,2]
[343244029,1732528238561,-8800.3,0.00023197,2]
[343244030,1732528238570,-500.0,0.00023197,2]
[343244031,1732528238579,-500.0,0.00023197,2]
[343244032,1732528238588,-151.49791023,0.00023197,2]
[343244033,1732528238598,-500.0,0.00023197,2]
[343244034,1732528238607,-500.0,0.00023197,2]
[343244035,1732528238616,-500.0,0.00023197,2]
[343244036,1732528238625,-500.0,0.00023197,2]
[343244037,1732528238635,-500.0,0.00023197,2]
[343244038,1732528238643,-500.0,0.00023197,2]
[343244039,1732528238652,-500.0,0.00023197,2]
[343244040,1732528238662,-500.0,0.00023199,2]
[343244041,1732528238671,-500.0,0.00023199,2]
[343244042,1732528238680,-500.0,0.00023199,2]
[343244043,1732528238689,-508.96107969,0.00023199,2]
[343244044,1732528238698,-534.87,0.00023199,2]
[343244045,1732528238708,-500.0,0.00023199,2]
[343244046,1732528238718,-500.0,0.00023199,2]
[343244047,1732528238731,-500.0,0.00023199,2]
[343244049,1732528238741,-500.0,0.00023199,2]
[343244050,1732528238750,-500.0,0.00023199,2]
[343244051,1732528238760,-500.0,0.00023199,2]
[343244052,1732528238769,-500.0,0.00023199,2]
[343244053,1732528238779,-500.0,0.00023199,2]
[343244054,1732528238788,-500.0,0.00023199,2]
[343244055,1732528238797,-500.0,0.00023199,2]
[343244056,1732528238808,-500.0,0.00023199,2]
[343244057,1732528238821,-329.28366679,0.00023199,2]
[343244058,1732528238830,-500.0,0.00023199,2]
[343244059,1732528238839,-500.0,0.00023199,2]
[343244060,1732528238848,-500.0,0.00023199,2]
[343244061,1732528238858,-500.0,0.00023199,2]
[343244062,1732528238867,-500.0,0.00023199,2]
[343244063,1732528238876,-500.0,0.00023199,2]
[343244064,1732528238885,-500.0,0.00023199,2]
[343244065,1732528238894,-503.11906055,0.00023199,2]
[343244066,1732528238904,-500.0,0.00023199,2]
[343244067,1732528238913,-500.0,0.00023199,2]
[343244068,1732528238922,-504.18563396,0.00023199,2]
[343244069,1732528238931,-504.31558855,0.00023199,2]
[343244070,1732528238940,-500.0,0.00023199,2]
[343244071,1732528238949,-500.0,0.00023199,2]
[343244072,1732528238959,-500.0,0.00023199,2]
[343244073,1732528238969,-500.0,0.00023199,2]
[343244074,1732528238978,-500.0,0.00023199,2]
[343244075,1732528238987,-500.0,0.00023199,2]
[343244076,1732528238997,-500.0,0.00023199,2]
[343244077,1732528239006,-500.0,0.0002325,2]
[343244078,1732528239016,-2264.53,0.0002325,2]
[343244079,1732528239025,-1681.43,0.0002325,2]
[343244080,1732528239035,-528.45,0.0002325,2]
[343244081,1732528239044,-500.0,0.0002325,2]
[343244082,1732528239054,-492.70764115,0.00023254,2]
[343244083,1732528239070,-500.0,0.00023254,2]
[343244084,1732528239080,-1000.0,0.00023254,10]
[343244085,1732528239089,-500.0,0.00023254,2]
[343244086,1732528239099,-626.80441075,0.00023254,2]
[343244087,1732528239109,-500.0,0.00023254,2]
[343244088,1732528239118,-500.0,0.00023254,2]
[343244089,1732528239128,-500.0,0.00023275,2]
[343244090,1732528239137,-500.0,0.00023275,2]
[343244091,1732528239146,-370.0,0.00023288,2]
[343244092,1732528239156,-163.441017,0.00023435,2]
[343244093,1732528239166,-500.0,0.00023471,2]
[343244094,1732528239175,-561.94,0.00023471,2]
[343244095,1732528239185,-8800.3,0.00023471,2]
[343244096,1732528239194,-500.0,0.00023471,2]
[343244097,1732528239203,-500.0,0.00023471,2]
[343244098,1732528239213,-500.0,0.00023471,2]
[343244099,1732528239222,-500.0,0.00023471,2]
[343244100,1732528239231,-500.0,0.00023471,2]
[343244101,1732528239241,-500.0,0.00023471,2]
[343244102,1732528239251,-500.0,0.00023471,2]
[343244103,1732528239261,-500.0,0.00023471,2]
[343244104,1732528239271,-500.0,0.00023471,2]
[343244105,1732528239280,-500.0,0.00023473,2]
[343244106,1732528239290,-500.0,0.00023473,2]
[343244107,1732528239300,-500.0,0.00023473,2]
[343244108,1732528239312,-534.87,0.00023473,2]
[343244109,1732528239323,-500.0,0.00023473,2]
[343244110,1732528239332,-500.0,0.00023473,2]
[343244111,1732528239342,-500.0,0.00023473,2]
[343244112,1732528239352,-500.0,0.00023473,2]
[343244113,1732528239361,-500.0,0.00023473,2]
[343244115,1732528239371,-500.0,0.00023473,2]
[343244116,1732528239380,-500.0,0.00023473,2]
[343244117,1732528239389,-500.0,0.00023473,2]
[343244119,1732528239456,-500.0,0.00023473,2]
[343244120,1732528239472,-500.0,0.00023473,2]
[343244121,1732528239482,-500.0,0.00023473,2]
[343244122,1732528239491,-500.0,0.00023473,2]
[343244123,1732528239500,-500.0,0.00023473,2]
[343244124,1732528239509,-500.0,0.00023473,2]
[343244125,1732528239519,-500.0,0.00023473,2]
[343244126,1732528239528,-500.0,0.00023473,2]
[343244127,1732528239538,-500.0,0.00023473,2]
[343244128,1732528239547,-500.0,0.00023473,2]
[343244129,1732528239557,-500.0,0.00023473,2]
[343244130,1732528239570,-500.0,0.00023473,2]
[343244131,1732528239579,-500.0,0.00023473,2]
[343244132,1732528239588,-500.0,0.00023473,2]
[343244133,1732528239597,-500.0,0.00023473,2]
[343244134,1732528239607,-500.0,0.00023473,2]
[343244135,1732528239616,-500.0,0.00023473,2]
[343244136,1732528239627,-132.83487539,0.00023473,2]
[343244137,1732528239645,-367.16512461,0.00023473,2]
[343244138,1732528239654,-500.0,0.00023473,2]
[343244139,1732528239664,-375.82547686,0.00023524,2]
[343244141,1732528239673,-2264.53,0.00023524,2]
[343244142,1732528239682,-1681.43,0.00023524,2]
[343244143,1732528239691,-528.45,0.00023524,2]
[343244144,1732528239701,-500.0,0.00023524,2]
[343244146,1732528239710,-507.81028254,0.00023528,2]
[343244148,1732528239721,-1000.0,0.00023528,10]
[343244150,1732528239732,-506.83980945,0.00023528,2]
[343244152,1732528239741,-515.83098343,0.00023528,2]
[343244154,1732528239752,-500.0,0.00023528,2]
[343244156,1732528239762,-370.0,0.00023562,2]
[343244158,1732528239772,-500.0,0.00023745,2]
[343244160,1732528239781,-8800.3,0.00023745,2]
[343244162,1732528239791,-500.0,0.00023745,2]
[343244164,1732528239800,-500.0,0.00023745,2]
[343244166,1732528239813,-500.0,0.00023745,2]
[343244168,1732528239822,-500.0,0.00023745,2]
[343244169,1732528239832,-500.0,0.00023745,2]
[343244171,1732528239841,-500.0,0.00023745,2]
[343244172,1732528239851,-500.0,0.00023745,2]
[343244173,1732528239860,-500.0,0.00023745,2]
[343244174,1732528239869,-500.0,0.00023745,2]
[343244176,1732528239879,-210.438,0.00023746,4]
[343244177,1732528239888,-500.0,0.00023747,2]
[343244178,1732528239898,-500.0,0.00023747,2]
[343244179,1732528239907,-500.0,0.00023747,2]
[343244180,1732528239916,-534.87,0.00023747,2]
[343244181,1732528239925,-500.0,0.00023747,2]
[343244182,1732528239934,-500.0,0.00023747,2]
[343244183,1732528239943,-500.0,0.00023747,2]
[343244184,1732528239953,-500.0,0.00023747,2]
[343244185,1732528239962,-500.0,0.00023747,2]
[343244186,1732528239972,-500.0,0.00023747,2]
[343244187,1732528239981,-500.0,0.00023747,2]
[343244188,1732528239994,-500.0,0.00023747,2]
[343244189,1732528240004,-500.0,0.00023747,2]
[343244190,1732528240013,-500.0,0.00023747,2]
[343244191,1732528240022,-500.0,0.00023747,2]
[343244192,1732528240031,-500.0,0.00023747,2]
[343244193,1732528240041,-500.0,0.00023747,2]